Cogmind - Beta 15 @@@ ROGUE MODE // 2025.08.13 @ 11:42:20 Player: Tuja Result: Destroyed by D-53 Grenadier with Mini Grenade Launcher Performance ------------- Evolutions (0) 0 Regions Visited (2) 400 Robots Destroyed (10) 50 Value Destroyed (292) 292 Prototype IDs (0) 0 Alien Tech Used (0) 0 Bonus (0) 0 TOTAL SCORE: 742 Bonus ------- None Cogmind --------- Core Integrity 0/250 Matter 285/300 Energy 249/250 System Corruption 2% Temperature Cool (0) Movement Rolling (115) Ox1 Location -10/Mines Parts ------- > --- POWER (1) -------- Ion Engine > --- PROPULSION (2) --- Compact Wheel > --- UTILITY (2) ------ Large Storage Unit > --- WEAPON (2) ------- (None) > --- INVENTORY (15) --- Light Ion Engine Improved Heat Sink Small Storage Unit Large Matter Pod (150) Sensor Array Hacking Suite Small Laser Particle Gun Datajack Peak State ------------ > --- POWER ------------ Light Ion Engine > --- PROPULSION ------- Wheel Compact Wheel > --- UTILITY ---------- Small Storage Unit Sensor Array > --- WEAPON ----------- EM Pulse Gun Small Laser > --- INVENTORY -------- Light Ion Engine EM Pulse Gun Grenade Launcher [Rating: 7] Favorites ----------- Power Light Ion Engine Engine Light Ion Engine Propulsion Compact Wheel Wheel Compact Wheel Utility Large Storage Unit Device Sensor Array Storage Large Storage Unit Processor Targeting Computer Weapon EM Pulse Gun Energy Gun EM Pulse Gun Launcher Grenade Launcher Build | -11 -10 -10 ------- Run | Yrd Mat Min Slots Evolved . | . . . Power . | . . . Propulsion . | . . . Utility . | . . . Weapon . | . . . Parts Attached 13 | 6 5 2 Power 2 | 1 1 . Engine 2 | 1 1 . Core . | . . . Reactor . | . . . Propulsion 3 | 2 . 1 Treads . | . . . Leg . | . . . Wheel 3 | 2 . 1 Hover . | . . . Flight . | . . . Utility 4 | 1 3 . Device 1 | . 1 . Storage 2 | 1 1 . Processor 1 | . 1 . Hackware . | . . . Protection . | . . . Artifact . | . . . Weapon 4 | 2 1 1 Energy Gun 3 | 2 1 . Energy Cannon . | . . . Ballistic Gun . | . . . Ballistic Cannon . | . . . Launcher 1 | . . 1 Special Weapon . | . . . Impact Weapon . | . . . Slashing Weapon . | . . . Piercing Weapon . | . . . Special Melee Weapon . | . . . Unidentified Prototypes . | . . . Parts Lost 8 | . 3 5 Power 1 | . 1 . Propulsion 2 | . 1 1 Utility 1 | . . 1 Weapon 4 | . 1 3 Highest Loss Streak 5 | . 2 5 To Critical Strikes . | . . . Average Backups 6 | 2 6 10 Power . | . 1 1 Propulsion . | . . 1 Utility 2 | . 2 5 Weapon 2 | 1 2 2 Tool/Special . | . . . Unused Backups 7 | . . 7 Power 1 | . . 1 Propulsion . | . . . Utility 3 | . . 3 Weapon 2 | . . 2 Tool/Special 1 | . . 1 Average Slot Usage (%) 83 | . 85 70 Engine 9 | . 9 14 Wheel 22 | . 23 14 Device 5 | . 6 . Storage 14 | . 14 14 Processor 5 | . 4 7 Energy Gun 25 | . 26 17 Peak Build Rating 7 | 6 7 7 Average Rating 5 | 3 6 5 On Entrance 4 | . 6 7 Naked Turns . | . . . Heaviest Build 28 | 11 28 28 Greatest Support 26 | 26 26 16 Greatest Overweight (x) 1 | . 1 1 Average Overweight (x) . | . . 1 Largest Inventory Capacity 15 | 8 15 15 Average Capacity 12 | 7 13 15 Most Carried 11 | 5 11 11 Average Carried 6 | 2 6 10 Final Capacity 15 | 8 15 15 Final Carried 11 | 2 11 9 Class Distribution -------------------- 100% | Mutant Dominant Class ---------------- Mutant | -10/Materials Mutant | -10/Mines Resources | -11 -10 -10 ----------- Run | Yrd Mat Min Matter Collected 455 | 240 215 . Remotely . | . . . Salvage Created 545 | . 535 10 Parts 27 | . 27 . Haulers Intercepted . | . . . Recyclers Shooed 1 | . 1 . Parts Field Recycled . | . . . Retrieved Matter . | . . . Parts Self-Destructed . | . . . Prevented . | . . . Kills | -11 -10 -10 ------- Run | Yrd Mat Min Combat Hostiles Destroyed 9 | . 7 2 Guns 7 | . 7 . AOE 2 | . . 2 Classes Destroyed 4 | . 3 1 Recycler 2 | . 2 . Operator 1 | . 1 . Grunt 7 | . 7 . Assembled 2 | . . 2 Best Kill Streak 4 | . 4 2 Combat Bots Only 3 | . 3 2 Max Kills in Single Turn 2 | . 1 2 Gunslinging . | . . . Exploded 2 | . . 2 Melee . | . . . Uniques/NPCs Destroyed . | . . . Combat | -11 -10 -10 -------- Run | Yrd Mat Min Hostile Shots Fired 50 | . 23 27 Missed 7 | . 3 4 Hits 43 | . 20 23 Melee 1 | . . 1 Projectile 42 | . 20 22 AOE 8 | . . 8 Critical Strikes 1 | . . 1 Damage Taken 735 | . 251 484 Core 259 | . 44 215 Absorbed by Shields . | . . . Core Remaining (%) 100 | 100 . . Volleys Fired 26 | . 21 5 Largest 2 | . 2 2 Hottest 80 | . 80 80 Shots Fired 48 | . 39 9 Gun 47 | . 39 8 Cannon . | . . . Launcher 1 | . . 1 Special . | . . . Kinetic . | . . . Thermal 22 | . 18 4 Explosive 1 | . . 1 Electromagnetic 25 | . 21 4 Robot Hit Streak 8 | . 8 1 Robot Miss Streak 2 | . 2 2 Penetration Max . | . . . Secondary Targets . | . . . Shots Hit Robots 32 | . 28 4 Core Hits 26 | . 19 7 Critical Kills . | . . . Critical Parts Destroyed . | . . . Critical Strikes 2 | . 2 . Corrupt 2 | . 2 . Melee Attacks . | . . . Impact . | . . . Slashing . | . . . Piercing . | . . . Sneak Attacks . | . . . Combat Hostiles . | . . . Follow-up Attacks . | . . . Damage Inflicted 597 | . 344 253 Guns 389 | . 344 45 Cannons . | . . . Explosions 208 | . . 208 Melee . | . . . Ramming . | . . . Kinetic . | . . . Thermal 146 | . 122 24 Explosive 208 | . . 208 Electromagnetic 243 | . 222 21 Impact . | . . . Slashing . | . . . Piercing . | . . . Highest Corruption 2 | . . 2 Average Corruption 2 | . . 2 Corruption Purged . | . . . Corruption Blocked . | . . . Overload Shots . | . . . Overflow Damage . | . . . Projectiles . | . . . Explosions . | . . . Melee . | . . . Knockbacks . | . . . Impact . | . . . Kinetic . | . . . Secondary . | . . . Self-Inflicted Damage 11 | . . 11 Shots 1 | . . 1 Rammed . | . . . Targets Rammed . | . . . Kicked . | . . . Crushed . | . . . Highest Temperature 182 | . 182 72 Average Temperature 59 | . 65 37 Received Heat Transfer 141 | . 141 . Siege Activations . | . . . Martial Activations . | . . . Shielding Activations . | . . . Robots Disrupted . | . . . Combat Hostiles . | . . . Robots Corrupted . | . . . Combat Hostiles . | . . . Parts Fried 1 | . 1 . Impact Corruptions . | . . . Robots Melted . | . . . Combat Hostiles . | . . . Parts Melted . | . . . Heat Transferred 325 | . 275 50 Parts Sabotaged . | . . . Parts Stolen . | . . . Parts Stripped . | . . . Power Chain Reactions . | . . . Alert | -11 -10 -10 ------- Run | Yrd Mat Min Maximum Alert Level . | . . . Low Security (%) 100 | 100 100 100 Level 1 . | . . . Level 2 . | . . . Level 3 . | . . . Level 4 . | . . . Level 5 . | . . . High Security . | . . . Max Security . | . . . Peak Influence 100 | . 100 39 Initial 39 | . . 39 Average 34 | . 42 17 Influence Increases 263 | . 255 8 Destroy 0b10 Robot/C 140 | . 140 . Destroy 0b10 Robot/NC 15 | . 15 . Destroy Leader 30 | . 30 . Successful Hack 10 | . 10 . Destroy Structure 8 | . . 8 Lose Combat Pursuer 60 | . 60 . Influence Decreases 263 | . 155 108 Entered New Map 61 | . . 61 Time Decay 135 | . 125 10 Lost Part 67 | . 30 37 Squads Dispatched 1 | . 1 . Investigation 1 | . 1 . Extermination . | . . . Reinforcement . | . . . Assault . | . . . Garrison . | . . . Intercept . | . . . Searches Triggered . | . . . Construction Impeded . | . . . Haulers Reinforced . | . . . Active Scanning Responses . | . . . Cargo Convoy Interrupts . | . . . Stealth | -11 -10 -10 --------- Run | Yrd Mat Min Distress Signals 1 | . 1 . Communications Jammed . | . . . Distress Signals . | . . . Times Spotted 33 | . 12 21 Peak Tracking Total 18 | . 6 18 Tactical Retreats 1 | . 1 . Traps | -11 -10 -10 ------- Run | Yrd Mat Min Traps Triggered 1 | . 1 . Indirectly . | . . . Trap Hack Attempts . | . . . Triggered . | . . . Disarmed . | . . . Reprogrammed . | . . . Reused . | . . . Traps Extracted . | . . . Installed . | . . . Triggered . | . . . Machines | -11 -10 -10 ---------- Run | Yrd Mat Min Machines Disabled . | . . . Max in Single Turn . | . . . Machines Repaired . | . . . Machines Dismantled . | . . . Machines Sabotaged . | . . . Overloaded Fab Kills . | . . . Hacking | -11 -10 -10 --------- Run | Yrd Mat Min Machines Accessed 2 | . 2 . Terminals 1 | . 1 . Fabricators . | . . . Repair Stations . | . . . Recycling Units 1 | . 1 . Scanalyzers . | . . . Garrison Access . | . . . Total Hacks 7 | . 7 . Successful 4 | . 4 . Failed 3 | . 3 . Catastrophic 2 | . 2 . Database Lockouts . | . . . Manual 5 | . 5 . Terminals 3 | . 3 . Fabricators . | . . . Repair Stations . | . . . Recycling Units 4 | . 4 . Scanalyzers . | . . . Garrison Access . | . . . Terminal Hacks . | . . . Fabricator Hacks . | . . . Repair Station Hacks . | . . . Recycling Unit Hacks 2 | . 2 . Report Inventory 1 | . 1 . Retrieve Components 1 | . 1 . Scanalyzer . | . . . Garrison Access Hacks . | . . . Unauthorized Hacks 2 | . 2 . Terminals 1 | . 1 . Botnet 1 | . 1 . Fabricators . | . . . Repair Stations . | . . . Recycling Units 1 | . 1 . Mask 1 | . 1 . Scanalyzers . | . . . Garrison Access . | . . . Data Cores Recovered 1 | . 1 . Used . | . . . Hacking Detections 2 | . 2 . Full Trace Events 1 | . 1 . Feedback Events . | . . . Feedback Blocked . | . . . Robot Schematics Acquired . | . . . Robots Built . | . . . Authchips . | . . . Time . | . . . Total Robot Build Rating . | . . . Part Schematics Acquired . | . . . Parts Built . | . . . Authchips . | . . . Time . | . . . Total Part Build Rating . | . . . Parts Repaired . | . . . Time . | . . . Parts Recycled . | . . . Recycled Matter . | . . . Retrieved Matter . | . . . Retrieved Components 5 | . 5 . Parts Scanalyzed . | . . . Part Schematics Acquired . | . . . Parts Damaged . | . . . Bothacking | -11 -10 -10 ------------ Run | Yrd Mat Min Used RIF Installer . | . . . Robots Hacked . | . . . Non-combat . | . . . Combat . | . . . Robot Hacks Applied . | . . . Relay Couplers Released . | . . . Fabnet Peak Effective % . | . . . Robots Rewired . | . . . Allies Hacked . | . . . Hacks Repelled . | . . . Allies | -11 -10 -10 -------- Run | Yrd Mat Min Total Allies . | . . . Largest Group . | . . . Highest-Rated Group . | . . . Highest-Rated Ally . | . . . Total Orders . | . . . Ally Attacks . | . . . Total Damage . | . . . Kills . | . . . Allies Corrupted . | . . . Allies Melted . | . . . Intel | -11 -10 -10 ------- Run | Yrd Mat Min Active Infowar (turns) 165 | . 165 . Sensors 165 | . 165 . Robot Analysis Total . | . . . Derelict Logs Recovered . | . . . Drone Launches . | . . . Drone Recoveries . | . . . Exploration | -11 -10 -10 ------------- Run | Yrd Mat Min Turns Passed 437 | 60 343 34 Spaces Moved 331 | 61 254 16 Core 22 | 22 . . Treads . | . . . Legs . | . . . Wheels 309 | 39 254 16 Hover . | . . . Flight . | . . . Fastest Speed 50 | 50 90 115 Average Speed 95 | 75 99 115 Slowest Speed 115 | 90 115 115 Overloaded Moves . | . . . Propulsion Burnouts . | . . . Robots Hopped . | . . . Potential Cave-ins 2 | . . 2 Cave-ins Triggered . | . . . Exploration Rate (%) 19 | 4 38 17 Regions Visited 2 Branch Regions 1 Pre-discovered Areas . | . . . Known Exits Taken . | . . . Unknown Exits Taken 2 | 1 1 . Scrap Searched . | . . . Spaces Dug . | . . . Terrain Destroyed 8 | . . 8 Melee . | . . . Projectile . | . . . AOE 8 | . . 8 Terrain Rammed . | . . . Walls Destroyed . | . . . Machines Disabled . | . . . Actions | -11 -10 -10 --------- Run | Yrd Mat Min Total 400 | 74 303 23 Wait 12 | . 12 . Move 329 | 60 253 16 Hop . | . . . Pick Up 19 | 8 11 . Fast Attach 2 | . 2 . Attach 11 | 6 3 2 Detach . | . . . Swap 1 | . 1 . Drop . | . . . Fire 26 | . 21 5 Melee . | . . . Ram . | . . . Kick . | . . . Crush . | . . . Escape Stasis . | . . . Rewire . | . . . Trap . | . . . Miscellaneous . | . . . Route ------- -11/Scrapyard -10/Materials (discovered 2 exits: [*Mat] / [*Min]) -10/Mines History --------- Turn | Location | Event 35 | -11/Scrapyard | Discovered new exit (range 15) 61 | -11/Scrapyard | Entered Materials 214 | -10/Materials | Discovered new exit (range 4) 324 | -10/Materials | Build established: Mutant 335 | -10/Materials | Discovered new exit (range 5) 404 | -10/Materials | Entered Mines 405 | -10/Mines | Assembled infested the area 429 | -10/Mines | Core integrity fell below 50% 437 | -10/Mines | Core integrity fell below 20% 438 | -10/Mines | Destroyed by D-53 Grenadier with Mini Grenade Launcher Last Messages --------------- 00420_ as-21808 destroyed. 00420_ as-53782 destroyed. 00422_ as-72151 destroyed. 00422_ as-40003 destroyed. 00424_ as-77532 destroyed. 00425_ as-41398 destroyed. 00425_ as-76944 destroyed. 00425_ as-84071 destroyed. 00426_ U-05 Engineer lays Concrete. 00427_ Grenade Launcher destroyed. 00427_ U-05 Engineer builds a Wall. 00428_ K-01 Serf collects debris. 00428_ Com. Wheel destroyed. 00430_ The unstable cave ceiling collapses. 00431_ U-05 Engineer lays Concrete. 00433_ as-39886 destroyed. 00433_ K-01 Serf destroyed. 00433_ U-05 Engineer destroyed. 00434_ The unstable cave ceiling collapses. 00436_ Seismic Survey Station disabled. Map ----- +----------------------------------------------------+ | | | ???????????????????????????????????????????? | | ???????????????????????????????????????????? | | ???????????????????????????????????????????? | | ???????????????????????????????????????????? | | ???????????????????????????????????????????? | | ???????????????????????????????????????????? | | ???????????????????????????????????????????? | | ???????????????????????????????????????????? | | ???????????????????????????????????????????? | | ???????????????????????????????????????????? | | ??????????????? ??????????????????????????? | | ??????????????? ?????????????????????????? | | ??????????????? ????????#????????????????? | | ???????????????# ????#### ????????????????? | | ???????????????# ???# ?????????????????? | | ???????????????# #?# ?????????????????? | | ???????????????# #? ??????????????????? | | ????????????#??# #? ???????????????????? | | ????????????# ?# ## ???????????????????? | | ???????????## ## # ????????????????????? | | ???????????# r #????????????????????? | | ???????????# ##???????????????????? | | ??????????## """ #???????????????????? | | ??????????# ###??????????????????? | | ??????????# @ ##?????????????????? | | ??????????# #?????????????????? | | ????????#?## ##?????????????????? | | ????????? ?## ##??????????????????? | | ?????????# ## r #???????????????????? | | ?????????# # ### #???????????????????? | | ??????#### #? #???????????????????? | | ?????## ## ### #???????????????????? | | ?????# ## #???????????????????? | | ?????# dd# ####???????????????????? | | ?????# % = #??????????????????????? | | ?????# !!! ??????????????????? | | ?????# %%%= ????????????????? | | ?????## =%#= #???????????????? | | ??????#### % * # ##???????????????? | | ????????? " #? ##????????????????? | | ???????? #?? ##?????????????????? | | ???????? ???##??????????????????? | | ???????# # # ???????????????????????? | | ???????? ####? ???????????????????????? | | ??????????# #????# ???????????????????????? | | ???????????# #?????##??????????????????????? | | ???????????# #?????????????????????????????? | | ???????????# #?????????????????????????????? | | ???????????? #?????????????????????????????? | +----------------------------------------------------+ Best States ------------- Heat Dissipation 25 Energy Generation 10 Energy Capacity 250 Matter Stores 300 Matter Capacity 300 Sight Range 16 Robot Scan Range 14 Terrain Scan Density 10 Evasion (%) 50 Targeting Accuracy 5 Item Schematics ----------------- None Robot Schematics ------------------ None Fabricated ------------ Nothing Repaired ---------- Nothing Alien Tech Used ----------------- None Achievements -------------- None Challenges ------------ None Game ------ Seed ImpulseShieldSlayer Manual? 0 Play Time 00:06:12 Cumulative 60.3 hours Start 2025.08.13 @ 11:37:02 End 2025.08.13 @ 11:42:20 Sessions 1 Manual Loads 0 Difficulty Rogue Special Mode None Game No. 38 Rogue 34 Adventurer 4 Explorer 0 Win Type - Total 0 Types 0/0/0/0/0/0/0/0/0/0 Lore% 41 Gallery% 38 Achievement% 33 Wizard Run 0 Options --------- Layout 1 ASCII 0 Keyboard 0 Movement Numpad Keybinds 1 Fullscreen 1 Font 24/Smallcaps Map View 50x35 Zoom Use 0% Tactical HUD 1 Map Filters NONE Filters NONE Steam 1 RUN: 457f0b03-5c7a-4209-b1e6-a52756b9bea0